fUST/lending_fUST_20240812
["ID","MTS","AMOUNT","RATE_DAILY","PERIOD"]
[334692551,1723477665054,-1004.82,0.00016626,2]
[334692552,1723477665076,-1139.17,0.00016626,2]
[334692553,1723477665097,-500.0,0.00016626,2]
[334692554,1723477665127,-500.0,0.00016626,2]
[334692555,1723477665154,-2065.65,0.00016626,2]
[334692556,1723477665175,-500.0,0.00016626,2]
[334692557,1723477665196,-316.094647,0.00016626,2]
[334692558,1723477665217,-316.094647,0.00016626,2]
[334692559,1723477665238,-184.96914,0.00016626,2]
[334692560,1723477665261,-500.0,0.00016626,2]
[334692561,1723477665284,-500.0,0.00016626,2]
[334692562,1723477665304,-500.0,0.00016626,2]
[334692563,1723477665325,-500.0,0.00016626,2]
[334692564,1723477665352,-672.77,0.00016626,2]
[334692565,1723477665374,-1209.36,0.00016626,2]
[334692566,1723477665397,-500.0,0.00016626,2]
[334692567,1723477665419,-502.81348,0.00016626,2]
[334692568,1723477665440,-502.81348,0.00016626,2]
[334692569,1723477665461,-318.07644,0.00016636,2]
[334692570,1723477665482,-318.07644,0.00016636,2]
[334692571,1723477665503,-156.649056,0.00016636,2]
[334692572,1723477665524,-156.649056,0.00016636,2]
[334692573,1723477665545,-771.8,0.00016636,2]
[334692574,1723477665567,-6062.95,0.00016636,2]
[334692575,1723477665587,-500.0,0.00016636,2]
[334692576,1723477665613,-937.51,0.00016636,2]
[334692577,1723477665652,-532.56160692,0.00016636,2]
[334692578,1723477665674,-500.0,0.00016636,2]
[334692579,1723477665697,-1206.07,0.00016636,2]
[334692580,1723477665720,-602.51,0.00016636,2]
[334692581,1723477665744,-150.67175855,0.00016636,2]
[334692582,1723477666110,154.86823843,0.0001212,2]
[334692583,1723477666169,-3090.72018399,0.00015851,2]
[334692584,1723477666190,-157.583704,0.00015972,2]
[334692585,1723477666214,-2207.1221,0.00016,3]
[334692586,1723477666234,-157.583704,0.00016095,2]
[334692587,1723477666256,-157.583704,0.00016352,2]
[334692588,1723477666277,-568.86824145,0.00016636,2]
[334692589,1723477666298,-2611.84,0.00016636,2]
[334692590,1723477666318,-500.0,0.00016636,2]
[334692591,1723477666337,-3805.11,0.00016636,2]
[334692592,1723477666358,-500.0,0.00016636,2]
[334692593,1723477666377,-805.89,0.00016636,2]
[334692594,1723477666397,-1215.72,0.00016636,2]
[334692595,1723477666418,-500.0,0.00016636,2]
[334692596,1723477666439,-574.86,0.00016636,2]
[334692597,1723477666463,-180.532013,0.00016636,2]
[334692598,1723477666485,-180.532013,0.00016636,2]
[334692599,1723477666505,-500.0,0.00016636,2]
[334692600,1723477666529,-572.656076,0.00016636,2]
[334692601,1723477666552,-1004.62,0.00016636,2]
[334692602,1723477666573,-572.656076,0.00016636,2]
[334692603,1723477666594,-687.949945,0.00016636,2]
[334692604,1723477666614,-1218.21,0.00016636,2]
[334692605,1723477666646,-687.949945,0.00016636,2]
[334692606,1723477666666,-639.62,0.00016636,2]
[334692607,1723477666689,-3139.53,0.00016636,2]
[334692608,1723477666714,-263.724371,0.00016636,2]
[334692609,1723477666739,-500.0,0.00016636,2]
[334692610,1723477666763,-151.0,0.00016636,2]
[334692611,1723477666783,-263.724371,0.00016636,2]
[334692612,1723477666803,-1994.82,0.00016636,2]
[334692613,1723477666823,-500.0,0.00016736,2]
[334692614,1723477666844,-500.0,0.00016736,2]
[334692615,1723477666865,-293.75168834,0.00016736,2]
[334692616,1723477666885,-500.0,0.00016736,2]
[334692617,1723477666905,-500.0,0.00016736,2]
[334692618,1723477666927,-1336.96,0.00016736,2]
[334692619,1723477666947,-271.82959269,0.00016736,2]
[334692620,1723477666967,-151.0,0.00016736,2]
[334692621,1723477666986,-200.0,0.00016773,2]
[334692622,1723477667008,-608.10215758,0.00016791,2]
[334692623,1723477667028,-928.85,0.00016791,2]
[334692624,1723477667048,-500.0,0.00016791,2]
[334692625,1723477667068,-500.0,0.00016791,2]
[334692626,1723477667090,-598.73,0.00016791,2]
[334692627,1723477667111,-500.0,0.00016791,2]
[334692628,1723477667300,-1395.29,0.00016791,2]
[334692629,1723477667336,-1207.23,0.00016791,2]
[334692630,1723477667358,-500.0,0.00016791,2]
[334692631,1723477667388,-500.0,0.00016791,2]
[334692632,1723477667418,-1819.56,0.00016791,2]
[334692633,1723477667440,-1064.74,0.00016791,2]
[334692634,1723477667462,-477.635504,0.00016791,2]
[334692635,1723477667483,-303.733673,0.00016791,2]
[334692636,1723477667505,-303.733673,0.00016791,2]
[334692637,1723477667525,-1000.0,0.00016791,2]
[334692638,1723477667546,-1000.0,0.00016791,2]
[334692639,1723477667566,-1000.0,0.00016791,2]
[334692640,1723477667587,-1000.0,0.00016791,2]
[334692641,1723477667608,-1000.0,0.00016791,2]
[334692642,1723477667643,-1000.0,0.00016791,2]
[334692643,1723477667664,-1000.0,0.00016791,2]
[334692644,1723477667686,-1000.0,0.00016791,2]
[334692645,1723477667707,-1000.0,0.00016791,2]
[334692646,1723477667729,-1000.0,0.00016791,2]
[334692647,1723477667752,-1000.0,0.00016791,2]
[334692648,1723477667775,-1000.0,0.00016791,2]
[334692649,1723477667798,-1000.0,0.00016791,2]
[334692650,1723477667820,-1000.0,0.00016791,2]
[334692651,1723477667842,-1000.0,0.00016791,2]
[334692652,1723477667864,-1000.0,0.00016791,2]
[334692653,1723477667900,-1000.0,0.00016791,2]
[334692654,1723477667924,-1000.0,0.00016791,2]
[334692655,1723477667945,-1000.0,0.00016791,2]
[334692656,1723477667967,-1000.0,0.00016791,2]
[334692657,1723477667991,-1000.0,0.00016791,2]
[334692658,1723477668015,-1000.0,0.00016791,2]
[334692659,1723477668037,-1000.0,0.00016791,2]
[334692660,1723477668060,-1000.0,0.00016791,2]
[334692661,1723477668083,-1000.0,0.00016791,2]
[334692662,1723477668105,-1000.0,0.00016791,2]
[334692663,1723477668133,-1000.0,0.00016791,2]
[334692664,1723477668162,-1000.0,0.00016791,2]
[334692665,1723477668183,-1000.0,0.00016791,2]
[334692666,1723477668205,-1000.0,0.00016791,2]
[334692667,1723477668227,-1000.0,0.00016791,2]
[334692668,1723477668250,-1000.0,0.00016791,2]
[334692669,1723477668272,-1000.0,0.00016791,2]
[334692670,1723477668294,-1000.0,0.00016791,2]
[334692671,1723477668317,-1000.0,0.00016791,2]
[334692672,1723477668339,-1000.0,0.00016791,2]
[334692673,1723477668362,-1000.0,0.00016791,2]
[334692674,1723477668390,-1000.0,0.00016791,2]
[334692675,1723477668412,-1000.0,0.00016791,2]
[334692676,1723477668436,-1000.0,0.00016791,2]
[334692677,1723477668459,-1000.0,0.00016791,2]
[334692678,1723477668480,-1000.0,0.00016791,2]
[334692679,1723477668503,-1000.0,0.00016791,2]
[334692680,1723477668525,-1000.0,0.00016791,2]
[334692681,1723477668547,-1000.0,0.00016791,2]
[334692682,1723477668569,-1000.0,0.00016791,2]
[334692683,1723477668591,-1000.0,0.00016791,2]
[334692684,1723477668613,-1000.0,0.00016791,2]
[334692685,1723477668645,-1000.0,0.00016791,2]
[334692686,1723477668667,-1000.0,0.00016791,2]
[334692687,1723477668690,-1000.0,0.00016791,2]
[334692688,1723477668714,-1000.0,0.00016791,2]
[334692689,1723477668736,-1000.0,0.00016791,2]
[334692690,1723477668757,-1000.0,0.00016791,2]
[334692691,1723477668780,-1000.0,0.00016791,2]
[334692692,1723477668803,-1000.0,0.00016791,2]
[334692693,1723477668826,-822.01637884,0.00016791,2]
[334692694,1723477704125,254.9786404,0.0001492,2]
[334692695,1723477716163,250.0,0.00014928,2]
[334692696,1723477716423,250.0,0.00014969,2]
[334692699,1723477744912,24900.0,0.00014333,2]
[334692735,1723477834225,-250.0,0.0001501,2]
[334692736,1723477834234,-250.0,0.00015051,2]
[334692737,1723477834244,-250.0,0.00015092,2]
[334692738,1723477834253,-250.0,0.00015133,2]
[334692739,1723477834262,-250.0,0.00015174,2]
[334692740,1723477834272,-250.0,0.00015215,2]
[334692741,1723477834281,-250.0,0.00015256,2]
[334692742,1723477834290,-250.0,0.00015297,2]
[334692743,1723477834301,-250.0,0.00015338,2]
[334692744,1723477834311,-250.0,0.00015379,2]
[334692745,1723477834321,-250.0,0.00015419,2]
[334692746,1723477834331,-4933.09149949,0.0001543,2]
[334692747,1723477834342,-250.0,0.0001546,2]
[334692748,1723477834360,-250.0,0.00015501,2]
[334692749,1723477834370,-300.0,0.00015528,2]
[334692750,1723477834379,-300.0,0.00015528,2]
[334692751,1723477834388,-908.99,0.00015529,2]
[334692752,1723477834398,-693.03,0.00015529,2]
[334692753,1723477834407,-6948.55,0.00015529,2]
[334692754,1723477834417,-2140.03,0.00015529,2]
[334692755,1723477834426,-1358.32,0.00015529,2]
[334692756,1723477834437,-500.0,0.00015529,2]
[334692757,1723477834446,-277.38345751,0.00015529,2]
[334692758,1723477834475,-591.2483699,0.00015529,2]
[334692759,1723477835016,-371.53817259,0.00015529,2]
[334692760,1723477835025,-500.0,0.00015529,2]
[334692761,1723477835036,-500.0,0.00015529,2]
[334692762,1723477835045,-500.0,0.00015529,2]
[334692763,1723477835054,-1304.93,0.00015529,2]
[334692764,1723477835064,-543.05,0.00015529,2]
[334692765,1723477835073,-901.84,0.00015529,2]
[334692766,1723477835082,-500.0,0.00015529,2]
[334692767,1723477835092,-500.0,0.00015529,2]
[334692768,1723477835106,-551.06418126,0.00015529,2]
[334692769,1723477835115,-500.0,0.00015529,2]
[334692770,1723477835125,-500.0,0.00015529,2]
[334692771,1723477835135,-1635.31,0.00015529,2]
[334692772,1723477835144,-957.41,0.00015529,2]
[334692773,1723477835154,-500.0,0.00015529,2]
[334692774,1723477835163,-500.0,0.00015529,2]
[334692775,1723477835173,-2389.59796908,0.00015529,2]
[334692813,1723477838350,-1317.97586207,0.00015529,2]
[334692818,1723477839612,-1807.27616885,0.00015529,2]
[334692820,1723477839621,-500.0,0.00015529,2]
[334692821,1723477839631,-532.61,0.00015529,2]
[334692822,1723477839640,-500.0,0.00015529,2]
[334692823,1723477839649,-500.0,0.00015529,2]
[334692824,1723477839659,-500.0,0.0001553,2]
[334692825,1723477839668,-500.0,0.0001553,2]
[334692826,1723477839677,-500.0,0.0001553,2]
[334692827,1723477839686,-500.0,0.0001553,2]
[334692828,1723477839696,-500.0,0.0001553,2]
[334692829,1723477839705,-500.0,0.0001553,2]
[334692830,1723477839714,-962.44,0.0001553,2]
[334692831,1723477839724,-500.0,0.0001553,2]
[334692832,1723477839733,-500.0,0.0001553,2]
[334692833,1723477839742,-673.1,0.0001553,2]
[334692834,1723477839751,-519.58,0.0001553,2]
[334692835,1723477839761,-500.0,0.0001553,2]
[334692836,1723477839769,-500.0,0.0001553,2]
[334692837,1723477839779,-177.4132855,0.0001553,2]
[334692838,1723477839787,-795.33,0.0001553,2]
[334692839,1723477839796,-515.31255409,0.0001553,2]
[334692840,1723477839805,-500.0,0.0001553,2]
[334692841,1723477839814,-964.42,0.0001553,2]
[334692842,1723477839825,-500.0,0.0001553,2]
[334692843,1723477839834,-2485.46,0.0001553,2]
[334692844,1723477839842,-847.51,0.0001553,2]
[334692845,1723477839857,-500.0,0.0001553,2]
[334692846,1723477839866,-500.0,0.0001553,2]
[334692847,1723477839875,-693.64,0.0001553,2]
[334692848,1723477839884,-1579.24,0.0001553,2]
[334692849,1723477839893,-606.26,0.0001553,2]
[334692850,1723477839903,-305.51303156,0.0001553,2]
[334692851,1723477840984,-194.48696844,0.0001553,2]
[334692852,1723477840994,-301.74654116,0.0001553,2]
[334692853,1723477841003,-500.0,0.0001553,2]
[334692854,1723477841013,-1117.63,0.0001553,2]
[334692855,1723477841022,-530.14742153,0.00015539,2]
[334692856,1723477841031,-954.8,0.0001554,2]
[334692857,1723477841041,-569.63,0.0001554,2]
[334692858,1723477841051,-637.99,0.0001554,2]
[334692859,1723477841061,-250.0,0.00015542,2]
[334692860,1723477841070,-250.0,0.00015583,2]
[334692861,1723477841079,-250.0,0.00015624,2]
[334692862,1723477841090,-500.0,0.0001564,2]
[334692863,1723477841105,-500.0,0.0001564,2]
[334692864,1723477841117,-500.0,0.0001564,2]
[334692865,1723477841128,-250.0,0.00015665,2]
[334692866,1723477841140,-500.0,0.00015683,2]
[334692867,1723477841151,-1940.44,0.00015683,2]
[334692868,1723477841161,-1552.41452608,0.00015683,2]
[334692869,1723477841199,-5828.96547392,0.00015683,2]
[334692870,1723477841208,-795.76,0.00015683,2]
[334692871,1723477841218,-1243.05,0.00015683,2]
[334692872,1723477841227,-783.69,0.00015683,2]
[334692873,1723477841236,-500.0,0.00015683,2]
[334692874,1723477841246,-500.0,0.00015697,2]
[334692875,1723477841255,-500.0,0.00015697,2]
[334692876,1723477841264,-500.0,0.00015697,2]
[334692877,1723477841274,-223.36466741,0.00015697,2]
[334692878,1723477841284,-500.0,0.00015697,2]
[334692879,1723477841293,-500.0,0.00015697,2]
[334692880,1723477841303,-500.0,0.00015697,2]
[334692881,1723477841313,-500.0,0.00015697,2]
[334692882,1723477841326,-500.0,0.00015697,2]
[334692883,1723477841336,-500.0,0.00015698,2]
[334692884,1723477841351,-500.0,0.00015698,2]
[334692885,1723477841362,-500.0,0.00015698,2]
[334692886,1723477841372,-500.0,0.00015698,2]
[334692887,1723477841382,-500.0,0.00015698,2]
[334692888,1723477841391,-500.0,0.00015698,2]
[334692889,1723477841400,-1259.64,0.00015698,2]
[334692890,1723477841411,-500.0,0.00015698,2]
[334692891,1723477841421,-1156.53,0.00015698,2]
[334692892,1723477841431,-503.41868629,0.00015698,2]
[334692893,1723477841442,-500.0,0.00015698,2]
[334692894,1723477841454,-500.0,0.00015698,2]
[334692895,1723477841464,-1738.61,0.00015698,2]
[334692896,1723477841475,-2425.17,0.00015698,2]
[334692897,1723477841485,-544.52894034,0.00015698,2]
[334692898,1723477841495,-500.0,0.00015698,2]
[334692899,1723477841505,-596.59,0.00015698,2]
[334692900,1723477841516,-1017.11,0.00015698,2]
[334692901,1723477841526,-500.0,0.00015698,2]
[334692902,1723477841536,-500.0,0.00015698,2]
[334692903,1723477841546,-250.0,0.00015706,2]
[334692904,1723477841556,-159.69566704,0.00015751,2]
[334692905,1723477841566,-908.99,0.00015803,2]
[334692906,1723477841575,-693.03,0.00015803,2]
[334692907,1723477841585,-6948.55,0.00015803,2]
[334692908,1723477841595,-2140.03,0.00015803,2]
[334692909,1723477841608,-1358.32,0.00015803,2]
[334692910,1723477841620,-500.0,0.00015803,2]
[334692911,1723477841630,-1240.17,0.00015803,2]
[334692912,1723477841642,-500.0,0.00015803,2]
[334692913,1723477841651,-500.0,0.00015803,2]
[334692914,1723477841660,-500.0,0.00015803,2]
[334692915,1723477841670,-1304.93,0.00015803,2]
[334692916,1723477841680,-543.05,0.00015803,2]
[334692917,1723477841690,-901.84,0.00015803,2]
[334692918,1723477841699,-500.0,0.00015803,2]
[334692919,1723477841709,-500.0,0.00015803,2]
[334692920,1723477841719,-500.0,0.00015803,2]
[334692921,1723477841728,-500.0,0.00015803,2]
[334692922,1723477841739,-1635.31,0.00015803,2]
[334692923,1723477841749,-957.41,0.00015803,2]
[334692924,1723477841758,-500.0,0.00015803,2]
[334692925,1723477841768,-500.0,0.00015803,2]
[334692926,1723477841777,-5514.85,0.00015803,2]
[334692927,1723477841789,-500.0,0.00015803,2]
[334692928,1723477841798,-532.61,0.00015803,2]
[334692929,1723477841809,-500.0,0.00015803,2]
[334692930,1723477841819,-500.0,0.00015803,2]
[334692931,1723477841831,-500.0,0.00015804,2]
[334692932,1723477841840,-500.0,0.00015804,2]
[334692933,1723477841852,-500.0,0.00015804,2]
[334692934,1723477841863,-500.0,0.00015804,2]
[334692935,1723477841872,-962.44,0.00015804,2]
[334692936,1723477841882,-500.0,0.00015804,2]
[334692937,1723477841892,-500.0,0.00015804,2]
[334692938,1723477841901,-673.1,0.00015804,2]
[334692939,1723477841912,-519.58,0.00015804,2]
[334692940,1723477841923,-500.0,0.00015804,2]
[334692941,1723477841933,-500.0,0.00015804,2]
[334692942,1723477841943,-795.33,0.00015804,2]
[334692943,1723477841952,-500.0,0.00015804,2]
[334692944,1723477841966,-964.42,0.00015804,2]
[334692945,1723477841975,-500.0,0.00015804,2]
[334692946,1723477841984,-2485.46,0.00015804,2]
[334692947,1723477841994,-847.51,0.00015804,2]
[334692948,1723477842005,-500.0,0.00015804,2]
[334692949,1723477842015,-500.0,0.00015804,2]
[334692950,1723477842025,-693.64,0.00015804,2]
[334692951,1723477842035,-1579.24,0.00015804,2]
[334692952,1723477842045,-606.26,0.00015804,2]
[334692953,1723477842054,-1117.63,0.00015804,2]
[334692954,1723477842064,-954.8,0.00015814,2]
[334692955,1723477842077,-569.63,0.00015814,2]
[334692956,1723477842087,-637.99,0.00015814,2]
[334692957,1723477842097,-970.09985732,0.00015851,2]
[334692958,1723477842113,-500.0,0.00015914,2]
[334692959,1723477842123,-500.0,0.00015914,2]
[334692960,1723477842133,-500.0,0.00015914,2]
[334692961,1723477842144,-165.78487403,0.00015952,2]
[334692962,1723477842154,-500.0,0.00015957,2]
[334692963,1723477842165,-1940.44,0.00015957,2]
[334692964,1723477842174,-7381.38,0.00015957,2]
[334692965,1723477842184,-795.76,0.00015957,2]
[334692967,1723477842194,-1243.05,0.00015957,2]
[334692969,1723477842204,-783.69,0.00015957,2]
[334692970,1723477842215,-500.0,0.00015957,2]
[334692971,1723477842225,-500.0,0.00015972,2]
[334692972,1723477842235,-500.0,0.00015972,2]
[334692973,1723477842245,-500.0,0.00015972,2]
[334692974,1723477842255,-500.0,0.00015972,2]
[334692975,1723477842265,-1259.64,0.00015972,2]
[334692976,1723477842274,-500.0,0.00015972,2]
[334692977,1723477842283,-1156.53,0.00015972,2]
[334692978,1723477842293,-500.0,0.00015972,2]
[334692979,1723477842304,-500.0,0.00015972,2]
[334692980,1723477842314,-1738.61,0.00015972,2]
[334692981,1723477842325,-2425.17,0.00015972,2]
[334692982,1723477842337,-500.0,0.00015972,2]
[334692983,1723477842353,-596.59,0.00015972,2]
[334692984,1723477842367,-1017.11,0.00015972,2]
[334692985,1723477842377,-500.0,0.00015972,2]
[334692986,1723477842386,-500.0,0.00015972,2]
[334692988,1723477842396,-210.07711325,0.00016038,2]
[334692991,1723477842405,-157.24672089,0.00016038,2]
[334692994,1723477842415,-908.99,0.00016077,2]
[334692996,1723477842425,-693.03,0.00016077,2]
[334692998,1723477842436,-6948.55,0.00016077,2]
[334693000,1723477842446,-2140.03,0.00016077,2]
[334693002,1723477842455,-1358.32,0.00016077,2]
[334693005,1723477842466,-500.0,0.00016077,2]
[334693007,1723477842476,-1240.17,0.00016077,2]
[334693008,1723477842486,-500.0,0.00016077,2]
[334693009,1723477842495,-500.0,0.00016077,2]
[334693010,1723477842505,-500.0,0.00016077,2]
[334693011,1723477842515,-1304.93,0.00016077,2]
[334693012,1723477842525,-543.05,0.00016077,2]
[334693013,1723477842536,-901.84,0.00016077,2]
[334693014,1723477842546,-500.0,0.00016077,2]
[334693015,1723477842556,-500.0,0.00016077,2]
[334693017,1723477842565,-500.0,0.00016077,2]
[334693018,1723477842575,-500.0,0.00016077,2]
[334693019,1723477842584,-1635.31,0.00016077,2]
[334693020,1723477842594,-957.41,0.00016077,2]
[334693021,1723477842613,-500.0,0.00016077,2]
[334693022,1723477842623,-500.0,0.00016077,2]
[334693023,1723477842633,-5514.85,0.00016077,2]
[334693025,1723477842643,-608.40936206,0.00016077,2]
[334693027,1723477842652,-532.61,0.00016077,2]
[334693029,1723477842661,-500.0,0.00016077,2]
[334693031,1723477842671,-500.0,0.00016077,2]
[334693032,1723477842680,-595.39,0.00016078,2]
[334693033,1723477842690,-354.23779702,0.00016078,2]
[334693034,1723477842709,-500.0,0.00016078,2]
[334693035,1723477842719,-500.0,0.00016078,2]
[334693036,1723477842729,-962.44,0.00016078,2]
[334693037,1723477842738,-500.0,0.00016078,2]
[334693038,1723477842748,-500.0,0.00016078,2]
[334693039,1723477842758,-673.1,0.00016078,2]
[334693040,1723477842767,-519.58,0.00016078,2]
[334693041,1723477842777,-500.0,0.00016078,2]
[334693042,1723477842786,-500.0,0.00016078,2]
[334693043,1723477842796,-795.33,0.00016078,2]
[334693044,1723477842805,-500.0,0.00016078,2]
[334693045,1723477842814,-964.42,0.00016078,2]
[334693046,1723477842824,-500.0,0.00016078,2]
[334693047,1723477842833,-2485.46,0.00016078,2]
[334693048,1723477842842,-847.51,0.00016078,2]
[334693049,1723477842859,-500.0,0.00016078,2]
[334693050,1723477842868,-500.0,0.00016078,2]
[334693051,1723477842878,-693.64,0.00016078,2]
[334693053,1723477843081,-1579.24,0.00016078,2]
[334693054,1723477843091,-606.26,0.00016078,2]
[334693055,1723477843105,-1117.63,0.00016078,2]
[334693056,1723477843115,-954.8,0.00016088,2]
[334693057,1723477843124,-569.63,0.00016088,2]
[334693058,1723477843133,-637.99,0.00016088,2]
[334693059,1723477843143,-154.77557542,0.00016159,2]
[334693060,1723477843152,-500.0,0.00016188,2]
[334693061,1723477843161,-500.0,0.00016188,2]
[334693062,1723477843171,-500.0,0.00016188,2]
[334693064,1723477843180,-500.0,0.00016231,2]
[334693065,1723477843189,-7381.38,0.00016231,2]
[334693066,1723477843199,-795.76,0.00016231,2]
[334693067,1723477843208,-1243.05,0.00016231,2]
[334693068,1723477843217,-783.69,0.00016231,2]
[334693069,1723477843226,-500.0,0.00016231,2]
[334693070,1723477843235,-170.98,0.00016246,2]
[334693071,1723477843245,-500.0,0.00016246,2]
[334693072,1723477843254,-509.62,0.00016246,2]
[334693073,1723477843263,-500.0,0.00016246,2]
[334693074,1723477843272,-1259.64,0.00016246,2]
[334693075,1723477843282,-500.0,0.00016246,2]
[334693076,1723477843291,-1156.53,0.00016246,2]
[334693077,1723477843300,-500.0,0.00016246,2]
[334693078,1723477843310,-500.0,0.00016246,2]
[334693079,1723477843322,-1738.61,0.00016246,2]
[334693080,1723477843332,-2425.17,0.00016246,2]
[334693081,1723477843342,-500.0,0.00016246,2]
[334693082,1723477843355,-596.59,0.00016246,2]
[334693083,1723477843365,-1017.11,0.00016246,2]
[334693084,1723477843374,-500.0,0.00016246,2]
[334693085,1723477843383,-522.8794631,0.00016309,2]
[334693086,1723477843393,-908.99,0.00016351,2]
[334693087,1723477843402,-693.03,0.00016351,2]
[334693088,1723477843411,-6948.55,0.00016351,2]
[334693089,1723477843420,-2140.03,0.00016351,2]
[334693090,1723477843430,-1358.32,0.00016351,2]
[334693091,1723477843439,-500.0,0.00016351,2]
[334693092,1723477843448,-1240.17,0.00016351,2]
[334693093,1723477843458,-500.0,0.00016351,2]
[334693094,1723477843468,-500.0,0.00016351,2]
[334693095,1723477843477,-500.0,0.00016351,2]
[334693096,1723477843486,-1304.93,0.00016351,2]
[334693097,1723477843495,-543.05,0.00016351,2]
[334693098,1723477843505,-901.84,0.00016351,2]
[334693099,1723477843514,-500.0,0.00016351,2]
[334693100,1723477843523,-500.0,0.00016351,2]
[334693101,1723477843533,-500.0,0.00016351,2]
[334693102,1723477843542,-500.0,0.00016351,2]
[334693103,1723477843551,-1635.31,0.00016351,2]
[334693104,1723477843560,-957.41,0.00016351,2]
[334693105,1723477843569,-500.0,0.00016351,2]
[334693106,1723477843578,-500.0,0.00016351,2]
[334693107,1723477843587,-5514.85,0.00016351,2]
[334693108,1723477843597,-532.61,0.00016351,2]
[334693109,1723477843611,-500.0,0.00016351,2]
[334693110,1723477843621,-500.0,0.00016351,2]
[334693111,1723477843630,-500.0,0.00016352,2]
[334693112,1723477843639,-500.0,0.00016352,2]
[334693113,1723477843649,-962.44,0.00016352,2]
[334693114,1723477843658,-500.0,0.00016352,2]
[334693115,1723477843668,-500.0,0.00016352,2]
[334693116,1723477843677,-673.1,0.00016352,2]
[334693117,1723477843686,-519.58,0.00016352,2]
[334693118,1723477843696,-500.0,0.00016352,2]
[334693119,1723477843705,-500.0,0.00016352,2]
[334693120,1723477843715,-795.33,0.00016352,2]
[334693121,1723477843724,-500.0,0.00016352,2]
[334693122,1723477843733,-964.42,0.00016352,2]
[334693123,1723477843743,-500.0,0.00016352,2]
[334693124,1723477843753,-2485.46,0.00016352,2]
[334693125,1723477843762,-847.51,0.00016352,2]
[334693126,1723477843771,-500.0,0.00016352,2]
[334693127,1723477843781,-500.0,0.00016352,2]
[334693128,1723477843790,-693.64,0.00016352,2]
[334693129,1723477843799,-1579.24,0.00016352,2]
[334693130,1723477843808,-606.26,0.00016352,2]
[334693131,1723477843818,-1117.63,0.00016352,2]
[334693132,1723477843827,-954.8,0.00016362,2]
[334693133,1723477843836,-569.63,0.00016362,2]
[334693134,1723477843845,-637.99,0.00016362,2]
[334693135,1723477843857,-153.0,0.00016438,2]
[334693136,1723477843867,-153.0,0.00016438,2]
[334693137,1723477843875,-153.0,0.00016438,2]
[334693138,1723477843884,-153.0,0.00016438,2]
[334693139,1723477843894,-153.0,0.00016438,2]
[334693140,1723477843903,-153.0,0.00016438,2]
[334693141,1723477843912,-153.0,0.00016438,2]
[334693142,1723477843922,-153.0,0.00016438,2]
[334693143,1723477843931,-153.0,0.00016438,2]
[334693144,1723477843940,-153.0,0.00016438,2]
[334693145,1723477843950,-153.0,0.00016438,2]
[334693146,1723477843960,-153.0,0.00016438,2]
[334693147,1723477843972,-153.0,0.00016438,2]
[334693148,1723477843981,-153.0,0.00016438,2]
[334693149,1723477843990,-153.0,0.00016438,2]
[334693150,1723477844000,-153.0,0.00016438,2]